fUST/lending_fUST_20240120
["ID","MTS","AMOUNT","RATE_DAILY","PERIOD"]
[312210052,1705686646508,-500.0,0.00032876,7]
[312210055,1705686646517,-500.0,0.00032876,7]
[312210059,1705686646527,-250.33350617,0.00032876,7]
[312210062,1705686646536,-500.0,0.00032876,7]
[312210066,1705686646546,-548.47791975,0.00032876,7]
[312210069,1705686646555,-500.0,0.00032876,7]
[312210071,1705686646565,-500.0,0.00032876,7]
[312210074,1705686646574,-500.0,0.00032876,7]
[312210076,1705686646584,-500.0,0.00032876,7]
[312210079,1705686646595,-500.0,0.00032876,7]
[312210080,1705686646605,-500.0,0.00032876,7]
[312210082,1705686646615,-500.0,0.00032876,7]
[312210084,1705686646624,-500.0,0.00032876,7]
[312210086,1705686646633,-500.0,0.00032876,7]
[312210088,1705686646643,-500.0,0.00032876,7]
[312210090,1705686646652,-600.07775421,0.00032876,7]
[312210092,1705686646661,-500.0,0.00032876,7]
[312210094,1705686646670,-500.0,0.00032876,7]
[312210097,1705686646680,-500.0,0.00032876,7]
[312210098,1705686646689,-500.0,0.00032876,7]
[312210100,1705686646699,-500.0,0.00032876,7]
[312210102,1705686646708,-203.94018472,0.00032876,7]
[312210104,1705686646717,-500.0,0.00032876,7]
[312210106,1705686646726,-386.44566217,0.00033,2]
[312210108,1705686646735,-6762.26543772,0.00033,4]
[312210110,1705686646745,-500.0,0.00033,3]
[312210112,1705686646756,-165.899904,0.00033014,2]
[312210114,1705686646765,-831.14,0.0003315,3]
[312210116,1705686646774,-5214.37,0.0003315,3]
[312210118,1705686646784,-1289.34,0.0003315,3]
[312210120,1705686646793,-1373.52,0.0003315,3]
[312210122,1705686646802,-1661.59,0.0003315,3]
[312210124,1705686646811,-3246.11,0.0003315,3]
[312210126,1705686646821,-500.0,0.0003315,3]
[312210128,1705686646830,-291.25891855,0.0003315,3]
[312210130,1705686646839,-560.68,0.0003315,3]
[312210132,1705686646849,-161.256925,0.00033275,2]
[312210134,1705686646858,-831.14,0.00033424,3]
[312210136,1705686646868,-5214.37,0.00033424,3]
[312210138,1705686646877,-1289.34,0.00033424,3]
[312210140,1705686646888,-1373.52,0.00033424,3]
[312210142,1705686646897,-1661.59,0.00033424,3]
[312210144,1705686646906,-3246.11,0.00033424,3]
[312210146,1705686646916,-500.0,0.00033424,3]
[312210148,1705686646925,-560.68,0.00033424,3]
[312210150,1705686646934,-150.0,0.00033564,2]
[312210152,1705686646943,-150.0,0.00033564,2]
[312210154,1705686646952,-350.0,0.0003366,2]
[312210156,1705686646962,-150.0,0.0003366,2]
[312210158,1705686646971,-221.1867503,0.0003366,2]
[312210160,1705686646980,-3662.7864926,0.0003366,2]
[312210162,1705686646989,-831.30124054,0.00033698,3]
[312210163,1705686646998,-5214.40894502,0.00033698,3]
[312210164,1705686647008,-1289.56923432,0.00033698,3]
[312210165,1705686647018,-1373.58880077,0.00033698,3]
[312210166,1705686647027,-1661.76796365,0.00033698,3]
[312210167,1705686647037,-3246.18054682,0.00033698,3]
[312210168,1705686647046,-270.96597004,0.00033698,3]
[312210169,1705686647056,-560.89836849,0.00033698,3]
[312210170,1705686647067,-205.18422816,0.00033723,2]
[312210171,1705686647076,-165.899904,0.00033973,2]
[312210172,1705686647086,-300.0,0.00034,17]
[312210173,1705686647095,-500.0,0.00034,3]
[312210174,1705686647104,-161.256925,0.00034321,2]
[312210175,1705686647114,-533.0,0.0003437,30]
[312210176,1705686647123,-533.0,0.0003438,30]
[312210177,1705686647132,-533.0,0.0003439,30]
[312210178,1705686647142,-238.5,0.0003439,30]
[312210179,1705686647152,-171.099226,0.00034401,2]
[312210180,1705686647161,-154.632947,0.00034401,2]
[312210181,1705686647171,-160.748637,0.00034401,2]
[312210182,1705686647181,-153.428875,0.00034401,2]
[312210183,1705686647190,-185.282566,0.00034401,2]
[312210185,1705686647199,-154.03091,0.00034401,2]
[312210187,1705686647208,-209.356195,0.00034401,2]
[312210191,1705686647218,-153.428873,0.00034401,2]
[312210194,1705686647227,-391.0,0.00034805,15]
[312210198,1705686647239,-209.356195,0.00034831,2]
[312210202,1705686647249,-165.899904,0.00034932,2]
[312210206,1705686647258,-171.099226,0.00034974,2]
[312210209,1705686647268,-160.748637,0.00034974,2]
[312210211,1705686647277,-185.282566,0.00034974,2]
[312210213,1705686647285,-3000.0,0.00035,30]
[312210215,1705686647295,-2084.5801718,0.00035,4]
[312210217,1705686647304,-3119.50448181,0.00035,19]
[312210219,1705686647316,-154.75239617,0.00035,4]
[312210222,1705686647326,-154.75239617,0.00035,4]
[312210223,1705686647336,-591.76162003,0.00035,2]
[312210225,1705686647345,-333.05418458,0.00035,4]
[312210228,1705686647354,-500.0,0.00035,3]
[312210229,1705686647363,-201.71762558,0.00035,2]
[312210231,1705686647374,-153.428873,0.00035261,2]
[312210234,1705686647384,-209.356195,0.00035261,2]
[312210236,1705686647394,-151.32984646,0.00035261,2]
[312210238,1705686647403,-161.256925,0.00035367,2]
[312210240,1705686647413,-1206.23882079,0.00035378,2]
[312210242,1705686647422,-12604.631068,0.000355,14]
[312210243,1705686647431,-300.0,0.000355,18]
[312210245,1705686647440,-171.099226,0.00035547,2]
[312210248,1705686647450,-160.748637,0.00035547,2]
[312210249,1705686647459,-185.282566,0.00035547,2]
[312210251,1705686647469,-234.253291,0.00035616,120]
[312210253,1705686647478,-209.356195,0.00035691,2]
[312210256,1705686647487,-201.71762558,0.000357,2]
[312210257,1705686647496,-2000.0,0.0003577,2]
[312210258,1705686647507,-165.899904,0.0003589,2]
[312210259,1705686647516,-155.02131266,0.00035998,4]
[312210260,1705686647525,-258.76819595,0.00035998,4]
[312210261,1705686647534,-607.87489301,0.00035998,14]
[312210262,1705686647543,-162.90283469,0.00035999,10]
[312210263,1705686647552,-295.48,0.00035999,2]
[312210264,1705686647562,-1244.01,0.00035999,2]
[312210265,1705686647571,-1244.01,0.00035999,2]
[312210266,1705686647581,-769.74,0.00035999,2]
[312210267,1705686647590,-285193.1318375,0.00036,4]
[312210268,1705686647599,-11028.74265102,0.00036,20]
[312210269,1705686647608,-171.099226,0.00036121,2]
[312210270,1705686647617,-160.748637,0.00036121,2]
[312210271,1705686647626,-185.282566,0.00036121,2]
[312210272,1705686647635,-153.428873,0.00036121,2]
[312210273,1705686647644,-154.632947,0.00036121,2]
[312210274,1705686647654,-154.03091,0.00036121,2]
[312210275,1705686647663,-209.356195,0.00036121,2]
[312210277,1705686647672,-533.0,0.0003618,30]
[312210279,1705686647681,-533.0,0.0003619,30]
[312210280,1705686647691,-30000.0,0.00036349,5]
[312210283,1705686647700,-300.0,0.00036394,2]
[312210284,1705686647710,-201.71762558,0.000364,2]
[312210286,1705686647719,-161.256925,0.00036413,2]
[312210288,1705686647728,-150.0,0.00036564,2]
[312210291,1705686647738,-151.0,0.0003682,4]
[312210292,1705686647748,-165.899904,0.00036849,2]
[312210294,1705686647759,-226.82018751,0.00037,4]
[312210296,1705686647768,-300.0,0.00037,19]
[312210298,1705686647778,-242.0611507,0.000371,5]
[312210300,1705686647788,-161.256925,0.0003746,2]
[312210302,1705686647802,-151.0,0.00037641,4]
[312210304,1705686647812,-242.0611507,0.000378,5]
[312210306,1705686647821,-165.899904,0.00037808,2]
[312210308,1705686647830,-1000.0,0.00038,38]
[312210310,1705686647838,-170.0,0.00038,2]
[312210312,1705686647847,-50000.0,0.00038071,7]
[312210314,1705686647856,-50000.0,0.00038075,7]
[312210315,1705686647866,-5000.0,0.00038215,7]
[312210317,1705686647876,-5000.0,0.00038215,7]
[312210319,1705686647888,-200.0,0.00038286,15]
[312210321,1705686647897,-348.0,0.00038286,15]
[312210323,1705686647911,-950.0,0.00038356,2]
[312210325,1705686647923,-151.0,0.00038462,4]
[312210327,1705686647933,-2138.56848426,0.000385,4]
[312210329,1705686647944,-300.0,0.000385,20]
[312210331,1705686647953,-282.40467581,0.000385,8]
[312210333,1705686647963,-161.256925,0.00038506,2]
[312210335,1705686647972,-950.0,0.0003863,2]
[312210337,1705686647981,-165.899904,0.00038767,2]
[312210339,1705686647990,-175.28039033,0.000389,2]
[312210341,1705686647998,-950.0,0.00038904,2]
[312210343,1705686648008,-640.35590766,0.00038999,7]
[312210345,1705686648017,-1000.0,0.00039,39]
[312210347,1705686648026,-2273.73997091,0.00039,5]
[312210349,1705686648034,-950.0,0.00039178,2]
[312210351,1705686648043,-151.0,0.00039283,4]
[312210353,1705686648053,-3499.58,0.000393,60]
[312210355,1705686648062,-950.0,0.00039452,2]
[312210357,1705686648072,-161.256925,0.00039552,2]
[312210359,1705686648081,-159.5983,0.0003956,7]
[312210361,1705686648091,-150.0,0.00039564,2]
[312210363,1705686648100,-245.09667305,0.000396,30]
[312210365,1705686648108,-950.0,0.00039726,2]
[312210367,1705686648117,-165.899904,0.00039726,2]
[312210369,1705686648126,-3000.0,0.000399,120]
[312210371,1705686648135,-4037.80969129,0.0003999,4]
[312210373,1705686648144,-155.04506948,0.0004,4]
[312210375,1705686648152,-154.75239617,0.0004,4]
[312210377,1705686648162,-1599.71858295,0.0004,4]
[312210379,1705686648171,-786.57088534,0.0004,30]
[312210381,1705686648180,-1000.0,0.0004,46]
[312210383,1705686648188,-1844.44481472,0.0004,4]
[312210385,1705686648197,-289.99999618,0.0004,4]
[312210387,1705686648206,-31972.37287041,0.0004,4]
[312210388,1705686648215,-192.85996915,0.0004,2]
[312210390,1705686648224,-500.0,0.0004,10]
[312210392,1705686648233,-980.54976185,0.0004,60]
[312210394,1705686648242,-249.3420013,0.0004,2]
[312210396,1705686648252,-957.12353842,0.0004,2]
[312210398,1705686648262,-300.0,0.0004,21]
[312210400,1705686648270,-600.0,0.0004,30]
[312210402,1705686648280,-2000.0,0.0004,32]
[312210413,1705686648361,-2000.0,0.0004001,32]
[312210415,1705686648370,-2128.317223,0.0004002,32]
[312210417,1705686648379,-154.4389629,0.0004007,30]
[312210419,1705686648388,-151.0,0.00040104,21]
[312210421,1705686648397,-154.4389629,0.00040163,30]
[312210423,1705686648406,-170.0,0.00040274,14]
[312210425,1705686648416,-154.12939898,0.00040342,30]
[312210426,1705686648427,-5000.0,0.00040378,4]
[312210428,1705686648437,-156.15034428,0.00040404,30]
[312210430,1705686648446,-156.15034428,0.0004044,30]
[312210432,1705686648455,-200.32499158,0.00040496,30]
[312210433,1705686648463,-154.4389629,0.00040573,30]
[312210435,1705686648473,-161.256925,0.00040598,2]
[312210437,1705686648482,-154.4389629,0.00040636,30]
[312210439,1705686648492,-165.899904,0.00040685,2]
[312210441,1705686648502,-154.4389629,0.00040708,30]
[312210443,1705686648511,-258.29129766,0.00040772,30]
[312210445,1705686648520,-156.15034428,0.00040794,30]
[312210446,1705686648529,-156.15034428,0.0004083,30]
[312210448,1705686648538,-154.4389629,0.00040845,30]
[312210450,1705686648547,-151.0,0.00040924,21]
[312210452,1705686648555,-154.4389629,0.00040938,30]
[312210454,1705686648564,-154.12939898,0.00040945,30]
[312210456,1705686648573,-154.4389629,0.00040957,30]
[312210457,1705686648582,-475.35402046,0.00040973,10]
[312210459,1705686648590,-475.35402046,0.00040973,10]
[312210461,1705686648599,-475.35402046,0.00040985,10]
[312210463,1705686648608,-475.35402046,0.00040994,10]
[312210465,1705686648617,-311.08667117,0.00040999,10]
[312210466,1705686648626,-1000.0,0.00041,41]
[312210468,1705686648635,-499.0,0.00041,120]
[312210470,1705686648644,-4610.86980662,0.00041,15]
[312210472,1705686648653,-600.0,0.00041014,30]
[312210474,1705686648662,-154.4389629,0.00041028,30]
[312210475,1705686648672,-154.12939898,0.00041079,30]
[312210477,1705686648681,-500.0,0.00041095,2]
[312210479,1705686648690,-154.4389629,0.00041144,30]
[312210481,1705686648698,-154.4389629,0.00041159,30]
[312210483,1705686648707,-154.4389629,0.00041167,30]
[312210485,1705686648716,-1500.0,0.00041205,7]
[312210487,1705686648725,-154.12939898,0.00041245,30]
[312210488,1705686648735,-156.15034428,0.00041274,30]
[312210490,1705686648744,-156.15034428,0.00041342,30]
[312210492,1705686648754,-156.15034428,0.00041391,30]
[312210494,1705686648763,-377.221879,0.000415,22]
[312210496,1705686648772,-154.4389629,0.00041543,30]
[312210498,1705686648780,-154.4389629,0.00041547,30]
[312210500,1705686648789,-234.253291,0.00041553,120]
[312210501,1705686648799,-156.15034428,0.00041577,30]
[312210503,1705686648808,-160.0,0.00041605,3]
[312210505,1705686648817,-160.71960998,0.00041634,30]
[312210507,1705686648826,-165.899904,0.00041644,2]
[312210509,1705686648835,-161.256925,0.00041644,2]
[312210511,1705686648844,-151.0,0.00041745,21]
[312210512,1705686648853,-154.12939898,0.00041757,30]
[312210514,1705686648862,-156.15034428,0.00041785,30]
[312210516,1705686648874,-156.15034428,0.00041835,30]
[312210518,1705686648885,-2127.0,0.0004189,14]
[312210519,1705686648894,-3627.0,0.0004189,14]
[312210520,1705686648903,-156.15034428,0.00041907,30]
[312210521,1705686648912,-160.0,0.00041985,4]
[312210522,1705686648921,-1741.68778441,0.00042,40]
[312210523,1705686648930,-973.2826259,0.00042,45]
[312210524,1705686648939,-1000.0,0.00042,42]
[312210525,1705686648948,-500.0,0.00042,2]
[312210526,1705686648957,-500.0,0.00042,2]
[312210527,1705686648966,-500.0,0.00042,2]
[312210528,1705686648975,-500.0,0.00042,2]
[312210529,1705686648984,-500.0,0.00042,2]
[312210530,1705686648993,-274.0,0.00042,10]
[312210531,1705686649002,-200.836615,0.00042,13]
[312210532,1705686649011,-500.0,0.00042,2]
[312210533,1705686649021,-500.0,0.00042,2]
[312210534,1705686649030,-500.0,0.00042,2]
[312210535,1705686649040,-500.0,0.00042,2]
[312210536,1705686649049,-500.0,0.00042,2]
[312210537,1705686649058,-150.0,0.00042,17]
[312210538,1705686649069,-860.55209277,0.00042,15]
[312210539,1705686649078,-4609.0,0.00042,15]
[312210540,1705686649087,-661.26421069,0.00042,15]
[312210541,1705686649096,-600.0,0.00042028,30]
[312210542,1705686649106,-1817.89385,0.00042112,2]
[312210543,1705686649115,-200.0,0.00042114,30]
[312210544,1705686649124,-200.0,0.00042114,30]
[312210546,1705686649132,-368.0,0.00042114,30]
[312210548,1705686649141,-154.4389629,0.00042222,30]
[312210550,1705686649150,-571.54093456,0.00042344,2]
[312210552,1705686649159,-160.0,0.00042365,5]
[312210553,1705686649168,-154.4389629,0.0004242,30]
[312210555,1705686649177,-617.91539569,0.000425,7]
[312210557,1705686649187,-154.4389629,0.0004253,30]
[312210559,1705686649196,-154.4389629,0.00042536,30]
[312210561,1705686649205,-2000.0,0.00042575,15]
[312210563,1705686649214,-154.12939898,0.00042622,30]
[312210565,1705686649222,-4550.42497,0.00042664,30]
[312210567,1705686649231,-154.4389629,0.00042672,30]
[312210569,1705686649241,-156.15034431,0.00042716,30]
[312210570,1705686649253,-154.4389629,0.00042731,30]
[312210572,1705686649263,-5000.0,0.00042742,4]
[312210574,1705686649272,-160.0,0.00042745,6]
[312210576,1705686649282,-154.12939901,0.00042752,30]
[312210578,1705686649292,-8694.55103993,0.0004286,3]
[312210580,1705686649302,-150.04213599,0.00042889,30]
[312210582,1705686649311,-154.4389629,0.00042905,30]
[312210584,1705686649320,-269.40452647,0.00042999,15]
[312210585,1705686649329,-265.99732891,0.00042999,14]
[312210587,1705686649338,-514.98857295,0.00042999,14]
[312210589,1705686649347,-1000.0,0.00042999,14]
[312210591,1705686649356,-150.0,0.00042999,14]
[312210593,1705686649365,-819.98493702,0.00042999,15]
[312210595,1705686649374,-291.53295175,0.00042999,14]
[312210597,1705686649383,-1052.87838102,0.00042999,14]
[312210599,1705686649393,-3286.21793853,0.00042999,15]
[312210600,1705686649402,-479.70562567,0.00042999,14]
[312210602,1705686649411,-240.8865485,0.00042999,15]
[312210604,1705686649421,-1000.0,0.00043,43]
[312210606,1705686649430,-1000.0,0.00043,30]
[312210608,1705686649440,-479.9761288,0.00043,10]
[312210610,1705686649449,-1000.0,0.00043,30]
[312210612,1705686649458,-5000.0,0.00043,30]
[312210614,1705686649467,-176.02,0.00043,30]
[312210615,1705686649477,-426.90393844,0.00043,30]
[312210617,1705686649486,-198.98527983,0.00043,30]
[312210619,1705686649498,-323.01146289,0.00043,30]
[312210621,1705686649513,-500.0,0.00043,30]
[312210623,1705686649523,-635.96012315,0.00043,30]
[312210625,1705686649532,-500.0,0.00043,30]
[312210627,1705686649541,-500.22233744,0.00043,30]
[312210629,1705686649550,-566.7185028,0.00043,30]
[312210631,1705686649559,-500.0,0.00043,30]
[312210633,1705686649569,-500.0,0.00043,30]
[312210635,1705686649578,-500.0,0.00043,30]
[312210637,1705686649587,-500.0,0.00043,30]
[312210638,1705686649596,-500.0,0.00043,30]
[312210640,1705686649605,-500.0,0.00043,30]
[312210642,1705686649614,-500.0,0.00043,30]
[312210644,1705686649623,-500.0,0.00043,30]
[312210646,1705686649632,-500.0,0.00043,30]
[312210648,1705686649642,-500.0,0.00043,30]
[312210650,1705686649650,-500.0,0.00043,30]
[312210652,1705686649659,-154.43896303,0.00043007,30]
[312210654,1705686649668,-600.0,0.00043042,30]
[312210655,1705686649677,-155.568187,0.00043079,7]
[312210657,1705686649686,-155.568187,0.00043079,7]
[312210659,1705686649695,-155.568187,0.00043079,7]
[312210661,1705686649704,-155.568187,0.00043079,7]
[312210663,1705686649713,-155.568187,0.00043079,7]
[312210665,1705686649722,-155.568187,0.00043079,7]
[312210667,1705686649731,-155.568187,0.00043079,7]
[312210669,1705686649740,-155.568187,0.00043079,7]
[312210671,1705686649749,-155.568187,0.00043079,7]
[312210672,1705686649761,-155.568187,0.00043079,7]
[312210674,1705686649771,-155.568187,0.00043079,7]
[312210676,1705686649780,-155.568187,0.00043079,7]
[312210678,1705686649790,-155.568187,0.00043079,7]
[312210680,1705686649799,-155.568187,0.00043079,7]
[312210682,1705686649808,-155.568187,0.00043079,7]
[312210684,1705686649817,-155.568187,0.00043079,7]
[312210686,1705686649826,-155.568187,0.00043079,7]
[312210688,1705686649835,-155.568187,0.00043079,7]
[312210690,1705686649845,-155.568187,0.00043079,7]
[312210692,1705686649854,-155.56819599,0.00043079,7]
[312210693,1705686649863,-286.691743,0.00043079,7]
[312210695,1705686649873,-286.691743,0.00043079,7]
[312210697,1705686649884,-286.691743,0.00043079,7]
[312210699,1705686649894,-286.691743,0.00043079,7]
[312210701,1705686649902,-286.691743,0.00043079,7]
[312210703,1705686649912,-286.691743,0.00043079,7]
[312210705,1705686649921,-286.691743,0.00043079,7]
[312210707,1705686649930,-286.691743,0.00043079,7]
[312210709,1705686649938,-286.691743,0.00043079,7]
[312210711,1705686649947,-286.691743,0.00043079,7]
[312210713,1705686649956,-286.691743,0.00043079,7]
[312210715,1705686649966,-286.691743,0.00043079,7]
[312210717,1705686649975,-286.691745,0.00043079,7]
[312210718,1705686649984,-1384.73231582,0.00043088,4]
[312210720,1705686649993,-350.0,0.00043089,7]
[312210722,1705686650004,-350.0,0.00043089,7]
[312210724,1705686650013,-350.0,0.00043089,7]
[312210726,1705686650022,-350.0,0.00043089,7]
[312210728,1705686650031,-350.0,0.00043089,7]
[312210730,1705686650040,-350.0,0.00043089,7]
[312210732,1705686650049,-350.0,0.00043089,7]
[312210733,1705686650058,-350.0,0.00043089,7]
[312210735,1705686650068,-350.0,0.00043089,7]
[312210737,1705686650078,-350.0,0.00043089,7]
[312210739,1705686650088,-350.0,0.00043089,7]
[312210741,1705686650097,-350.0,0.00043089,7]
[312210743,1705686650106,-350.0,0.00043089,7]
[312210745,1705686650115,-350.0,0.00043089,7]
[312210747,1705686650124,-350.0,0.00043089,7]
[312210755,1705686650202,-350.0,0.00043089,7]
[312210757,1705686650212,-350.0,0.00043089,7]
[312210759,1705686650221,-350.0,0.00043089,7]
[312210761,1705686650231,-350.0,0.00043089,7]
[312210763,1705686650240,-350.0,0.00043089,7]
[312210765,1705686650250,-537.0,0.0004311,30]
[312210767,1705686650262,-533.0,0.0004312,30]
[312210769,1705686650270,-160.0,0.00043125,7]
[312210771,1705686650279,-277.106511,0.00043145,7]
[312210773,1705686650289,-277.106511,0.00043145,7]
[312210775,1705686650298,-151.0,0.00043145,7]
[312210777,1705686650307,-10000.0,0.00043145,7]
[312210779,1705686650316,-10000.0,0.00043145,7]
[312210780,1705686650325,-10000.0,0.00043145,7]
[312210782,1705686650334,-10000.0,0.00043145,7]
[312210784,1705686650343,-10000.0,0.00043145,7]
[312210786,1705686650352,-10000.0,0.00043145,7]
[312210788,1705686650361,-10000.0,0.00043145,7]
[312210790,1705686650370,-10000.0,0.00043145,7]
[312210792,1705686650379,-10000.0,0.00043145,7]
[312210794,1705686650389,-277.106511,0.00043154,7]
[312210796,1705686650398,-277.106511,0.00043154,7]
[312210798,1705686650407,-277.106511,0.00043154,7]
[312210799,1705686650416,-277.106511,0.00043154,7]
[312210801,1705686650426,-277.106511,0.00043154,7]
[312210803,1705686650435,-277.106511,0.00043154,7]
[312210805,1705686650444,-277.106511,0.00043154,7]
[312210807,1705686650453,-277.106511,0.00043154,7]
[312210809,1705686650462,-277.106511,0.00043154,7]
[312210811,1705686650471,-277.106511,0.00043154,7]
[312210813,1705686650480,-277.106511,0.00043154,7]
[312210815,1705686650489,-277.106511,0.00043154,7]
[312210817,1705686650499,-277.106511,0.00043154,7]
[312210819,1705686650510,-277.106511,0.00043154,7]
[312210821,1705686650519,-277.106511,0.00043154,7]
[312210822,1705686650529,-277.106511,0.00043154,7]
[312210824,1705686650538,-277.106511,0.00043154,7]
[312210826,1705686650548,-277.106515,0.00043154,7]
[312210828,1705686650557,-151.0,0.00043154,7]
[312210830,1705686650567,-10000.0,0.00043154,7]
[312210832,1705686650576,-10000.0,0.00043154,7]
[312210834,1705686650585,-10000.0,0.00043154,7]
[312210836,1705686650595,-10000.0,0.00043154,7]
[312210838,1705686650604,-10000.0,0.00043154,7]
[312210840,1705686650614,-10000.0,0.00043154,7]
[312210842,1705686650623,-10000.0,0.00043154,7]
[312210844,1705686650632,-10000.0,0.00043154,7]
[312210846,1705686650642,-10000.0,0.00043154,7]
[312210848,1705686650651,-10000.0,0.00043154,7]
[312210849,1705686650660,-10000.0,0.00043154,7]
[312210851,1705686650670,-10000.0,0.00043154,7]
[312210853,1705686650679,-10000.0,0.00043154,7]
[312210855,1705686650688,-10000.0,0.00043154,7]
[312210857,1705686650697,-10000.0,0.00043154,7]
[312210859,1705686650707,-10000.0,0.00043154,7]
[312210861,1705686650716,-10000.0,0.00043154,7]
[312210863,1705686650724,-10000.0,0.00043154,7]
[312210865,1705686650734,-10000.0,0.00043154,7]
[312210867,1705686650743,-10000.0,0.00043154,7]
[312210869,1705686650753,-10000.0,0.00043154,7]
[312210870,1705686650762,-10000.0,0.00043154,7]
[312210872,1705686650771,-10000.0,0.00043154,7]
[312210874,1705686650780,-10000.0,0.00043154,7]
[312210876,1705686650791,-10000.0,0.00043154,7]
[312210878,1705686650801,-10000.0,0.00043154,7]
[312210880,1705686650810,-10000.0,0.00043154,7]
[312210882,1705686650819,-10000.0,0.00043154,7]
[312210884,1705686650829,-10000.0,0.00043154,7]
[312210886,1705686650838,-10000.0,0.00043154,7]
[312210888,1705686650847,-10000.0,0.00043154,7]
[312210890,1705686650856,-10000.0,0.00043154,7]
[312210892,1705686650866,-10000.0,0.00043154,7]
[312210894,1705686650881,-10000.0,0.00043154,7]
[312210895,1705686650890,-10000.0,0.00043154,7]
[312210897,1705686650899,-10000.0,0.00043154,7]
[312210899,1705686650908,-10000.0,0.00043154,7]
[312210901,1705686650917,-10000.0,0.00043154,7]
[312210903,1705686650926,-10000.0,0.00043154,7]
[312210905,1705686650935,-10000.0,0.00043154,7]
[312210907,1705686650945,-10000.0,0.00043154,7]
[312210908,1705686650953,-10000.0,0.00043154,7]
[312210910,1705686650963,-10000.0,0.00043154,7]
[312210912,1705686650972,-10000.0,0.00043154,7]
[312210914,1705686650981,-10000.0,0.00043154,7]
[312210916,1705686650990,-10000.0,0.00043154,7]
[312210918,1705686651000,-10000.0,0.00043154,7]
[312210920,1705686651012,-10000.0,0.00043154,7]
[312210922,1705686651021,-10000.0,0.00043154,7]
[312210924,1705686651030,-10000.0,0.00043154,7]
[312210926,1705686651039,-10000.0,0.00043154,7]
[312210927,1705686651049,-10000.0,0.00043154,7]
[312210929,1705686651059,-10000.0,0.00043154,7]
[312210931,1705686651069,-10000.0,0.00043154,7]
[312210933,1705686651078,-10000.0,0.00043154,7]
[312210935,1705686651087,-10000.0,0.00043154,7]
[312210937,1705686651097,-10000.0,0.00043154,7]
[312210939,1705686651106,-10000.0,0.00043154,7]
[312210940,1705686651115,-10000.0,0.00043154,7]
[312210942,1705686651125,-10000.0,0.00043154,7]
[312210944,1705686651134,-10000.0,0.00043154,7]
[312210946,1705686651144,-10000.0,0.00043154,7]
[312210948,1705686651154,-10000.0,0.00043154,7]
[312210950,1705686651163,-10000.0,0.00043154,7]
[312210952,1705686651172,-10000.0,0.00043154,7]
[312210954,1705686651181,-10000.0,0.00043154,7]
[312210956,1705686651191,-10000.0,0.00043154,7]
[312210958,1705686651200,-10000.0,0.00043154,7]
[312210960,1705686651209,-10000.0,0.00043154,7]
[312210962,1705686651218,-10000.0,0.00043154,7]
[312210963,1705686651227,-10000.0,0.00043154,7]
[312210965,1705686651236,-10000.0,0.00043154,7]
[312210967,1705686651246,-10000.0,0.00043154,7]
[312210969,1705686651259,-10000.0,0.00043154,7]
[312210971,1705686651268,-10000.0,0.00043154,7]
[312210973,1705686651276,-10000.0,0.00043154,7]
[312210975,1705686651285,-4063.735188,0.00043154,7]
[312210977,1705686651294,-744.08521997,0.00043159,4]
[312210979,1705686651303,-1500.0,0.00043159,4]
[312210980,1705686651313,-470.32965818,0.00043159,2]
[312210982,1705686651322,-3882.71570318,0.0004318,2]
[312210984,1705686651331,-107348.80769906,0.00043192,30]